bitfinex/quotes_ETHUSD_20250123
["timestamp","ask_amount","ask_price","bid_price","bid_amount"]
[1737624697345,3.86259,3212.5,3211.8,3.88999]
[1737624697546,3.11315,3212.2,3211.6,3.11368]
[1737624697733,3.55,3212.2,3211.4,3.11389]
[1737624697957,3.11331,3212.1,3211.4,6.22773]
[1737624698159,4.41302,3212.0,3211.9,0.14087]
[1737624698468,5.465653,3212.0,3211.9,0.14087]
[1737624699360,0.55,3211.9,3211.4,3.25475]
[1737624700675,0.55,3211.9,3211.5,0.14087]
[1737624701040,3.55,3211.9,3211.5,0.14087]
[1737624701243,0.55,3211.5,3211.0,0.41666667]
[1737624701452,3.11419,3211.1,3211.0,0.41666667]
[1737624701663,3.11402,3211.3,3211.0,0.41666667]
[1737624701863,3.11416,3211.2,3211.0,0.41666667]
[1737624702063,3.11402,3211.3,3211.0,0.41666667]
[1737624702064,3.11419,3211.1,3211.0,0.41666667]
[1737624702378,3.737011,3211.1,3211.0,0.41666667]
[1737624702975,4.486711,3211.1,3211.0,0.41666667]
[1737624703273,5.976711,3211.1,3211.0,0.41666667]
[1737624704049,6.60707063,3211.1,3211.0,0.41666667]
[1737624704576,3.49288063,3211.1,3211.0,0.41666667]
[1737624704947,2.74318063,3211.1,3211.0,0.41666667]
[1737624705366,5.85737063,3211.1,3211.0,0.41666667]
[1737624705882,2.74318063,3211.1,3211.0,0.41666667]
[1737624707080,3.29318063,3211.1,3211.0,0.41666667]
[1737624708560,2.112821,3211.1,3211.0,0.41666667]
[1737624708760,1.49,3211.1,3211.0,0.41666667]
[1737624708991,0.60755202,3211.2,3211.0,0.41666667]
[1737624709515,3.66419,3211.1,3211.0,0.41666667]
[1737624710160,0.55,3211.1,3211.0,0.41666667]
[1737624712483,3.66419,3211.1,3211.0,0.41666667]
[1737624712683,4.4027732,3211.1,3211.0,0.41666667]
[1737624714802,2.7785832,3211.1,3211.0,0.41666667]
[1737624716493,2.04,3211.1,3211.0,0.41666667]
[1737624719013,1.49,3211.1,3211.0,0.41666667]
[1737624719199,1.49,3211.1,3211.0,4.28345667]
[1737624719374,1.49,3211.1,3211.0,1.16916667]
[1737624720818,0.60755202,3211.2,3211.0,1.16916667]
[1737624720988,0.60755202,3211.2,3211.0,1.30999204]
[1737624721189,3.11377,3211.6,3211.0,4.42424204]
[1737624721405,0.697717,3211.5,3211.0,4.42424204]
[1737624721721,0.697717,3211.5,3211.0,1.30999204]
[1737624722012,1.49,3211.8,3211.5,3.92517]
[1737624722178,1.49,3211.8,3211.5,0.8114]
[1737624722373,4.60352,3211.8,3211.3,3.89507]
[1737624723390,4.60352,3211.8,3211.1,1.19573663]
[1737624723391,3.1138,3211.6,3211.1,1.19573663]
[1737624723584,4.015502,3211.6,3211.1,1.19573663]
[1737624724515,4.015502,3211.6,3211.2,0.14082537]
[1737624724696,3.11381,3211.5,3211.2,0.14082537]
[1737624725077,4.015502,3211.6,3211.2,0.14082537]
[1737624725078,5.154,3211.3,3211.2,0.14082537]
[1737624725308,5.9037,3211.3,3211.2,0.14082537]
[1737624725517,6.805468,3211.3,3211.2,0.14082537]
[1737624725676,6.805468,3211.3,3211.0,0.41666667]
[1737624725677,0.55,3211.2,3211.0,0.41666667]
[1737624725878,3.6641,3211.2,3211.0,0.41666667]
[1737624726609,2.391768,3211.3,3211.0,0.41666667]
[1737624726829,1.49,3211.3,3211.0,0.41666667]
[1737624726984,1.49,3211.3,3211.1,3.87437]
[1737624727194,3.86284,3212.2,3211.6,3.11364]
[1737624727384,1.49,3212.3,3211.7,0.7602]
[1737624727693,1.49,3212.3,3211.9,3.1134]
[1737624727919,0.61103513,3212.4,3212.0,3.1133]
[1737624728219,3.86247,3212.6,3212.0,3.1133]
[1737624728508,4.708974,3212.6,3212.0,3.1133]
[1737624729137,3.11295,3212.4,3211.7,0.7602]
[1737624729477,3.62380656,3212.5,3211.7,0.7602]
[1737624729681,3.11305,3212.3,3211.7,3.87375]
[1737624729932,0.55,3212.4,3211.7,3.87375]
[1737624730078,3.62380656,3212.5,3212.0,3.11325]
[1737624730280,0.62380656,3212.5,3212.1,3.11321]
[1737624730735,1.49,3213.2,3212.0,0.8165]
[1737624731023,0.7497,3213.7,3213.2,3.11215]
[1737624731239,1.49,3213.8,3213.3,3.92853]
[1737624731537,4.6016,3213.8,3212.8,3.11254]
[1737624731689,0.5236491,3213.7,3213.0,3.11228]
[1737624732120,0.5236491,3213.7,3213.2,3.11209]
[1737624733090,0.55,3213.6,3212.9,3.11244]
[1737624733398,0.55,3213.6,3212.7,3.92304]
[1737624733399,3.66185,3213.6,3212.7,3.92304]
[1737624733707,3.66185,3213.6,3213.0,3.11231]
[1737624733914,0.5236491,3213.7,3213.1,3.11222]
[1737624734609,0.5236491,3213.7,3213.3,3.11197]
[1737624734813,1.49,3213.8,3213.2,3.11213]
[1737624735321,4.60158,3213.8,3213.2,3.11213]
[1737624735625,1.49,3213.8,3213.0,3.11233]
[1737624735819,3.11168,3213.7,3213.0,3.11233]
[1737624737122,3.11187,3213.5,3212.8,3.11254]
[1737624737330,3.478057,3213.5,3212.9,3.11243]
[1737624740040,0.366187,3213.5,3212.9,3.11243]
[1737624740547,4.60159,3213.8,3213.0,0.03112235]
[1737624740842,1.49,3213.8,3213.2,3.1121]
[1737624741171,1.49,3213.8,3213.3,0.778]
[1737624741323,1.49,3213.8,3213.4,3.11195]
[1737624742540,1.49,3213.8,3213.5,3.11186]
[1737624744125,0.7497,3213.9,3213.5,3.11186]
[1737624744615,0.62182326,3214.0,3213.6,3.11171]
[1737624746034,0.62182326,3214.0,3213.4,3.11191]
[1737624746035,4.51909459,3214.0,3213.4,3.11191]
[1737624746361,0.55,3213.9,3213.0,3.87124]
[1737624746664,3.11183,3213.6,3213.0,3.11234]
[1737624746861,3.11189,3213.5,3212.8,3.11247]
[1737624747463,0.62810698,3213.4,3212.8,3.11247]
[1737624747657,0.62810698,3213.4,3212.8,6.22493]
[1737624747964,1.49,3213.5,3212.8,3.11246]
[1737624748139,1.49,3213.5,3213.1,3.11223]
[1737624748337,1.49,3213.5,3213.0,3.11235]
[1737624748732,1.49,3213.5,3213.1,3.11225]
[1737624751669,1.49,3213.5,3213.4,3.11196]
[1737624753070,3.1109,3214.5,3214.0,3.11138]
[1737624753071,1.49,3214.4,3214.0,3.11138]
[1737624753237,1.49,3214.4,3214.2,3.11118]
[1737624753442,1.49,3214.4,3214.0,3.11138]
[1737624753635,1.49,3214.4,3214.0,6.2227]
[1737624754249,1.49,3214.4,3214.0,3.11132]
[1737624755435,1.49,3214.4,3214.0,2.79882]
[1737624755780,3.11074,3214.7,3214.2,3.11119]
[1737624755957,2.10680177,3214.8,3214.2,3.11119]
[1737624756189,2.08670318,3214.8,3214.4,3.11098]
[1737624756362,1.49,3214.8,3214.4,3.11098]
[1737624756663,4.60064,3214.8,3214.2,3.11119]
[1737624757172,1.49,3214.8,3213.9,0.7589]
[1737624757375,3.11097,3214.5,3213.9,3.87038]
[1737624757755,3.11088,3214.6,3214.0,3.25228963]
[1737624757956,3.11125,3214.2,3214.0,0.14093963]
[1737624758175,3.11129,3214.1,3214.0,0.14093963]
[1737624759066,3.11129,3214.1,3213.5,3.1118]
[1737624759740,3.11125,3214.2,3213.5,3.1118]
[1737624759943,3.11125,3214.2,3213.6,3.1117]
[1737624760175,1.49,3214.3,3213.4,0.8275]
[1737624760378,1.49,3214.3,3213.9,3.11143]
[1737624761285,3.11125,3214.2,3213.7,0.14112541]
[1737624761447,4.60111,3214.3,3213.7,3.25272541]
[1737624762048,4.60111,3214.3,3213.8,0.36711318]
[1737624762272,0.90712152,3214.2,3213.8,0.36711318]
[1737624762468,4.01831152,3214.2,3213.8,0.36711318]
[1737624763073,4.01831152,3214.2,3213.9,0.14112541]
[1737624763271,3.11131,3214.1,3213.9,0.14112541]
[1737624763983,4.41108,3214.0,3213.9,0.14112541]
[1737624764187,5.25401915,3214.0,3213.9,0.14112541]
[1737624764366,3.11164,3213.8,3213.2,3.33809459]
[1737624765664,3.11164,3213.8,3213.3,0.36727286]
[1737624765866,3.11164,3213.8,3213.3,3.47932286]
[1737624766866,3.11164,3213.8,3213.3,0.36727286]
[1737624767063,3.422844,3213.7,3213.4,0.36727286]
[1737624767354,0.311164,3213.7,3213.4,0.36727286]
[1737624768165,0.311164,3213.7,3213.5,0.14124827]
[1737624768387,4.04982412,3213.7,3213.5,0.14124827]
[1737624769291,0.93814412,3213.7,3213.5,0.14124827]
[1737624769487,0.62698012,3213.7,3213.4,3.11196]
[1737624769688,0.62698012,3213.7,3213.4,3.11191]
[1737624771955,0.62698012,3213.7,3213.3,3.11201]
[1737624772357,0.62698012,3213.7,3213.5,0.14130136]
[1737624772592,1.49,3214.0,3213.6,3.88627]
[1737624772757,1.49,3214.0,3213.7,3.11166]
[1737624773700,0.7497,3214.4,3213.9,3.11141]
[1737624773993,4.60077,3214.7,3214.1,3.11128]
[1737624774290,5.371913,3214.7,3214.2,0.7638]
[1737624774470,2.261143,3214.7,3214.2,0.7638]
[1737624774673,2.261143,3214.7,3214.2,3.87499]
[1737624774984,0.62430364,3214.6,3214.2,0.7638]
[1737624775192,5.371863,3214.7,3214.3,0.14130136]
[1737624776006,5.371863,3214.7,3214.2,0.7638]
[1737624776702,5.261143,3214.7,3214.2,0.7638]
[1737624776878,3.9479903,3214.6,3214.2,0.7638]
[1737624777283,3.9479903,3214.6,3214.0,0.818]
[1737624778206,3.9479903,3214.6,3214.0,3.92936]
[1737624778776,3.9479903,3214.6,3214.1,3.25252891]
[1737624779102,3.9479903,3214.6,3214.1,0.14124891]
[1737624779306,0.60626052,3214.5,3214.1,0.14124891]
[1737624779916,0.7497,3214.4,3213.9,3.11141]
[1737624780071,3.1118,3213.6,3211.8,0.818]
[1737624780275,3.42307,3213.5,3212.3,0.818]
[1737624780604,3.11173,3213.7,3212.9,0.818]
[1737624780772,3.11177,3213.7,3212.9,0.818]
[1737624780970,3.11178,3213.6,3212.9,0.818]
[1737624781207,3.11174,3213.7,3213.0,0.03111948]
[1737624781426,3.87220266,3213.7,3213.0,0.03111948]
[1737624781590,3.87220266,3213.7,3212.9,0.818]
[1737624781591,3.11179,3213.6,3212.9,0.818]
[1737624782108,3.11213,3213.3,3212.9,0.818]
[1737624782428,3.11211,3213.3,3212.9,0.818]
[1737624782852,3.11219,3213.2,3212.9,0.818]
[1737624783953,3.11226,3213.1,3212.9,0.818]
[1737624784156,3.11235,3213.0,3212.9,0.818]
[1737624784342,3.11226,3213.1,3212.9,0.818]
[1737624785765,3.11256,3212.8,3212.3,0.8014]
[1737624786059,3.11304,3212.3,3211.9,0.8319]
[1737624786409,3.11329,3212.1,3211.9,0.8319]
[1737624787064,3.11368,3211.7,3211.2,0.8038]
[1737624787270,3.11378,3211.6,3211.2,0.8038]
[1737624787419,3.11391,3211.4,3211.2,0.8038]
[1737624788676,3.11378,3211.6,3211.2,0.8038]
[1737624788916,3.11355,3211.8,3211.2,0.8038]
[1737624789362,3.11363,3211.7,3211.2,0.8038]
[1737624789940,3.11377,3211.6,3211.2,0.8038]
[1737624790958,3.11355,3211.8,3211.2,0.8038]
[1737624791481,3.11332,3212.0,3211.3,0.03113766]
[1737624791668,3.11332,3212.0,3211.3,3.11397]
[1737624791844,3.11348,3211.9,3211.3,3.11397]
[1737624792326,3.11332,3212.0,3211.4,0.03113565]
[1737624792526,3.74275885,3212.2,3211.5,3.11379]
[1737624792527,3.11315,3212.2,3211.5,3.11379]
[1737624792758,3.11315,3212.2,3211.6,0.03113352]
[1737624793259,3.11315,3212.2,3211.6,3.14482352]
[1737624793474,3.11323,3212.1,3211.6,0.03113352]
[1737624795392,5.21926822,3212.3,3211.6,3.14478352]
[1737624795687,3.11296,3212.4,3211.8,3.8955]
[1737624795892,3.11296,3212.4,3211.8,3.92663158]
[1737624796771,3.11296,3212.4,3211.8,3.8955]
[1737624797706,3.11303,3212.3,3211.8,0.782]
[1737624797866,3.11322,3212.2,3211.8,0.782]
[1737624799670,3.11296,3212.4,3211.8,0.782]
[1737624800075,3.11305,3212.3,3211.8,0.782]
[1737624800281,3.11314,3212.2,3211.8,0.782]
[1737624801366,4.60281,3212.6,3212.0,3.11329]
[1737624801567,3.11313,3212.2,3211.8,0.782]
[1737624801799,3.11322,3212.1,3211.8,0.782]
[1737624802668,3.11307,3212.3,3211.8,0.782]
[1737624802867,0.60818174,3212.2,3211.8,0.782]
[1737624803099,3.11303,3212.3,3211.8,0.782]
[1737624803504,3.11297,3212.4,3211.8,0.782]
[1737624803709,3.93671484,3212.4,3211.8,0.782]
[1737624804018,0.82374484,3212.4,3211.9,3.11341]
[1737624804519,1.49,3212.6,3212.0,0.0311311]
[1737624804666,1.49,3212.6,3212.3,0.8235]
[1737624805015,3.11243,3213.0,3212.4,3.11292]
[1737624805176,3.73481053,3213.0,3212.4,3.11292]
[1737624805516,3.11246,3212.9,3212.4,3.11292]
[1737624806281,3.11246,3212.9,3212.3,0.85462854]
[1737624806482,0.62238053,3213.0,3212.4,3.11286]
[1737624806687,0.62238053,3213.0,3212.5,0.03112437]
[1737624806998,0.62238053,3213.0,3212.4,3.14398445]
[1737624807699,0.62238053,3213.0,3212.5,3.11276]
[1737624808003,3.73475053,3213.0,3212.4,3.14398445]
[1737624808399,0.62238053,3213.0,3212.5,3.11283]
[1737624808600,1.49,3213.2,3212.7,3.11264]
[1737624808781,1.49,3213.2,3212.4,0.03112445]
[1737624808782,0.63377693,3213.1,3212.6,3.11273]
[1737624809502,1.54354862,3213.1,3212.0,0.7777]
[1737624809669,3.11288,3212.5,3212.0,0.7777]
[1737624809873,3.11303,3212.3,3212.0,0.7777]
[1737624810369,3.11334,3212.0,3211.5,0.7777]
[1737624810805,3.11378,3211.6,3211.1,0.7777]
[1737624811011,3.11384,3211.5,3211.1,0.7777]
[1737624811297,3.11356,3211.8,3211.1,0.7777]
[1737624811499,3.425036,3211.7,3211.1,0.7777]
[1737624812199,3.11371,3211.6,3211.2,0.14043074]
[1737624813501,3.11371,3211.6,3211.1,0.7777]
[1737624813807,3.11381,3211.5,3211.1,0.7777]
[1737624814227,1.2997,3211.6,3210.9,0.22470722]
[1737624814433,3.11429,3211.0,3210.9,0.22470722]
[1737624814977,3.11439,3210.9,3210.4,0.8257]
[1737624816778,3.1144,3210.9,3210.4,0.8257]
[1737624817893,3.73052205,3211.1,3210.4,3.94056]
[1737624818101,3.11431,3211.0,3210.4,3.94056]
[1737624818415,3.11442,3210.9,3210.4,0.8257]
[1737624818578,3.73052205,3211.1,3210.4,3.94057]
[1737624818778,3.1143,3211.0,3210.4,3.94057]
[1737624818978,3.4872522,3211.1,3210.4,3.94057]
[1737624819218,3.114,3211.3,3210.4,3.97171577]
[1737624819590,0.55,3211.3,3210.4,0.8257]
[1737624819783,3.11468,3210.6,3210.4,0.8257]
[1737624819982,3.11451,3210.8,3210.0,0.7817]
[1737624820227,3.11465,3210.7,3210.1,3.11516]
[1737624820416,3.812516,3210.7,3210.1,3.11516]
[1737624820933,3.812516,3210.7,3210.0,0.7817]
[1737624820934,3.11481,3210.5,3210.0,0.7817]
[1737624821786,0.7497,3210.3,3209.7,1.17816667]
[1737624821982,0.7497,3210.3,3209.7,0.41666667]
[1737624821983,3.11537,3209.9,3209.7,0.41666667]
[1737624822177,3.11509,3210.2,3209.7,0.41666667]
[1737624822389,3.1153,3210.0,3209.7,0.41666667]
[1737624823507,0.386479,3210.1,3209.7,0.41666667]
[1737624824033,3.73913789,3210.2,3209.7,0.41666667]
[1737624824410,1.49,3210.4,3209.8,3.11538]
[1737624824736,3.11498,3210.3,3209.7,0.41666667]
[1737624824932,3.11498,3210.3,3209.7,3.53220667]
[1737624826919,1.49,3210.4,3210.1,3.11515]
[1737624827120,1.49,3210.4,3210.3,3.11497]
[1737624827320,1.49,3210.4,3210.2,3.87939]
[1737624827634,3.11452,3210.8,3210.2,3.87939]
[1737624827817,3.11452,3210.8,3210.2,0.79554748]
[1737624828004,3.11452,3210.8,3210.2,3.87942]
[1737624829636,3.11436,3211.0,3210.2,3.87942]
[1737624829934,3.11431,3211.0,3210.4,3.11478]
[1737624830115,6.22887,3210.9,3210.2,3.87945]
[1737624830309,3.11439,3210.9,3210.2,3.87945]
[1737624830630,3.11451,3210.8,3210.2,3.87945]
[1737624831836,3.74162158,3211.1,3210.2,3.87945]
[1737624832048,3.74162158,3211.1,3210.4,3.11482]
[1737624832049,3.11434,3211.0,3210.4,3.11482]
[1737624833538,0.62739158,3211.1,3210.6,3.11466]
[1737624833737,0.7497,3211.5,3210.8,0.7654]
[1737624833939,3.11381,3211.5,3210.8,3.8798]
[1737624834140,0.63533208,3211.5,3211.0,3.11426]
[1737624834310,3.1138,3211.6,3211.0,3.11426]
[1737624834511,3.11391,3211.4,3210.8,3.8798]
[1737624835839,3.31138,3211.5,3210.8,3.8798]
[1737624836010,6.42521,3211.5,3210.9,3.11431]
[1737624837142,3.11397,3211.4,3210.8,3.87988]
[1737624838340,3.11401,3211.3,3210.8,3.87988]
[1737624838546,3.11397,3211.4,3210.8,3.87988]
[1737624838846,3.11401,3211.3,3210.8,3.87988]
[1737624839376,3.11401,3211.3,3210.8,0.7654]
[1737624840383,3.11427,3211.1,3210.8,0.7654]
[1737624840544,3.11456,3210.8,3210.3,0.7994]
[1737624840877,3.11456,3210.8,3209.6,3.11563]
[1737624840878,3.11439,3210.9,3210.0,0.48374972]
[1737624841047,3.11494,3210.4,3210.0,0.48374972]
[1737624842244,6.22945,3210.6,3210.0,0.48374972]
[1737624842447,3.792635,3210.6,3210.0,3.59897972]
[1737624842759,3.792635,3210.6,3210.0,3.11523]
[1737624843778,3.792635,3210.6,3210.1,0.14041021]
[1737624843949,3.11477,3210.5,3210.1,0.14041021]
[1737624844881,3.11477,3210.5,3210.0,3.11523]
[1737624845258,6.6089115,3210.5,3209.9,0.7994]
[1737624845445,3.11488,3210.4,3209.9,0.7994]
[1737624845948,0.3792715,3210.5,3209.9,0.7994]
[1737624846285,3.11503,3210.3,3209.9,0.7994]
[1737624846493,3.11503,3210.3,3209.7,0.41666667]
[1737624846646,3.11524,3210.1,3209.7,0.41666667]
[1737624846983,3.11524,3210.1,3209.8,0.14046303]
[1737624847181,3.11526,3210.0,3209.8,0.14046303]
[1737624848162,3.73153134,3210.1,3209.8,0.14046303]
[1737624848373,4.17965447,3210.1,3209.7,0.41666667]
[1737624849089,3.11527,3210.0,3209.7,0.41666667]
[1737624849468,4.17965447,3210.1,3209.7,0.41666667]
[1737624850077,3.11526,3210.0,3209.7,0.41666667]
[1737624850391,4.17965447,3210.1,3209.7,0.41666667]
[1737624851393,0.41796545,3210.0,3209.7,0.41666667]
[1737624851706,0.61629134,3210.1,3209.7,0.41666667]
[1737624852952,0.61629134,3210.1,3209.7,3.53219667]
[1737624853388,0.61629134,3210.1,3209.7,0.41666667]
[1737624854124,3.11479,3210.5,3209.7,3.53220667]
[1737624854288,3.1149,3210.4,3209.7,3.53218667]
[1737624854468,3.1149,3210.4,3209.7,3.53213667]
[1737624854655,3.1149,3210.4,3209.8,3.11543]
[1737624854859,3.0,3210.6,3210.0,3.1152]
[1737624855052,4.41258,3210.6,3210.1,0.7658]
[1737624855485,0.63754529,3210.5,3210.1,0.7658]
[1737624855987,3.55,3210.3,3209.7,0.41666667]
[1737624856191,3.86515,3209.8,3209.7,0.41666667]
[1737624856378,5.1132,3209.8,3209.7,0.41666667]
[1737624858206,8.1132,3209.8,3209.7,0.41666667]
[1737624859505,8.72668698,3209.8,3209.7,0.41666667]
[1737624862813,0.61348698,3209.8,3209.7,0.41666667]
[1737624862969,3.11545,3209.8,3209.7,0.41666667]
[1737624863172,3.66545,3209.8,3209.7,0.41666667]
[1737624864132,4.41515,3209.8,3209.7,0.41666667]
[1737624864976,4.41515,3209.8,3209.7,0.10416666]
[1737624865212,8.84267368,3209.8,3209.7,0.10416666]
[1737624867911,3.66652,3208.7,3207.4,0.005]
[1737624868096,3.11759,3207.6,3207.4,0.005]
[1737624868299,3.11769,3207.5,3207.4,0.005]
[1737624868498,5.53452338,3207.5,3207.4,0.005]
[1737624868709,3.11788,3207.3,3206.5,0.8]
[1737624868927,4.96398005,3207.3,3206.5,3.91864]
[1737624869183,3.11788,3207.3,3206.5,0.8]
[1737624869356,4.78046672,3207.3,3206.4,2.91512787]
[1737624869551,3.86943,3205.4,3205.3,4e-07]
[1737624870027,3.94943,3205.4,3205.3,4e-07]
[1737624870246,4.41943,3205.4,3205.3,4e-07]
[1737624870472,3.12043,3204.7,3204.3,0.14003161]
[1737624870766,3.1207,3204.4,3204.3,0.14003161]
[1737624871073,3.11953,3205.7,3204.4,0.8304]
[1737624871231,0.61344528,3205.4,3204.8,2.94342403]
[1737624871413,0.61344528,3205.4,3205.3,0.8304]
[1737624871610,0.7497,3206.4,3204.7,3.12037]
[1737624871929,0.62946718,3206.4,3205.6,6.11953]
[1737624872128,3.11819,3207.0,3205.6,0.8304]
[1737624872327,3.98290134,3207.5,3205.6,0.8304]
[1737624872328,3.11878,3206.4,3205.6,0.8304]
[1737624872564,3.11851,3206.7,3205.7,38.1505431]
[1737624872711,3.11851,3206.7,3205.6,0.8304]
[1737624872712,3.11851,3206.7,3205.8,0.03118931]
[1737624872908,0.63888082,3206.8,3205.6,0.8304]
[1737624873143,3.11857,3206.6,3205.6,0.8304]
[1737624873305,0.37571608,3206.7,3205.6,0.8304]
[1737624873506,0.37571608,3206.7,3205.8,3.11928]
[1737624874019,3.49420608,3206.7,3205.8,3.11928]
[1737624874365,3.49420608,3206.7,3204.5,0.8304]
[1737624874366,3.11934,3205.8,3204.5,0.8304]
[1737624874506,3.11965,3205.5,3204.5,0.8304]
[1737624874709,3.11965,3205.5,3204.6,3.12048]
[1737624874911,0.311934,3205.7,3204.5,3.95092]
[1737624875265,3.431394,3205.7,3204.8,3.12029]
[1737624875407,3.11946,3205.7,3204.9,3.12021]
[1737624875607,3.11946,3205.7,3204.8,3.1203]
[1737624876311,3.11946,3205.7,3204.7,3.1204]
[1737624876520,3.73629823,3205.7,3204.8,3.12031]
[1737624877308,3.66954,3205.6,3204.8,3.12031]
[1737624877515,3.54829782,3205.5,3204.6,3.12047]
[1737624877841,3.54829782,3205.5,3204.7,3.1204]
[1737624878212,3.54829782,3205.5,3204.5,7.07142]
[1737624878443,3.54829782,3205.5,3204.6,3.12051]
[1737624878943,3.54829782,3205.5,3204.7,3.12037]
[1737624879148,0.48479978,3205.4,3204.7,3.12037]
[1737624879347,3.60454978,3205.4,3204.5,3.95099]
[1737624879522,3.60453978,3205.4,3204.6,3.1205]
[1737624879724,3.60453978,3205.4,3204.4,3.1207]
[1737624880057,0.48479978,3205.4,3204.4,3.1207]
[1737624880362,0.36044598,3205.3,3204.6,3.12042]
[1737624880566,0.36044598,3205.3,3204.7,3.12036]
[1737624880729,1.2997,3205.6,3204.5,3.12061]
[1737624881073,0.7497,3206.0,3205.4,3.1197]
[1737624881268,0.7497,3206.0,3205.3,3.11979]
[1737624881466,3.0,3206.2,3205.4,3.11965]
[1737624881761,6.11898,3206.2,3205.3,3.11979]
[1737624881965,3.11919,3206.0,3205.2,3.90304]
[1737624882157,1.55442165,3206.1,3205.3,3.11978]
[1737624882353,0.923784,3206.1,3205.6,3.11952]
[1737624882571,0.7497,3206.4,3205.8,3.11934]
[1737624882755,0.62882798,3206.5,3205.9,3.11922]
[1737624883131,0.62882798,3206.5,3205.9,2.95726546]
[1737624884064,3.62882798,3206.5,3205.9,2.95726546]
[1737624885173,3.11887,3206.3,3205.7,3.11943]
[1737624885348,0.311887,3206.2,3205.7,3.11943]
[1737624886136,0.311887,3206.2,3205.6,3.11949]
[1737624886370,3.11913,3206.1,3205.4,3.11967]
[1737624886690,0.311887,3206.2,3205.3,3.61927546]
[1737624886986,3.74750798,3206.5,3205.8,3.11927]
[1737624887272,3.11893,3206.3,3205.5,3.11963]
[1737624887771,0.7497,3206.1,3205.5,3.11954]
[1737624888078,3.86877,3206.1,3205.4,3.11971]
[1737624888246,0.55,3205.9,3205.2,0.7832]
[1737624888453,3.486336,3205.8,3205.2,3.11991]
[1737624889214,0.366916,3205.8,3204.9,3.58807869]
[1737624889371,3.0,3206.2,3205.6,3.11944]
[1737624889668,0.62775511,3205.7,3205.6,3.11944]
[1737624890050,0.62775511,3205.7,3205.4,3.11972]
[1737624890256,0.62775511,3205.7,3205.4,3.11965]
[1737624890599,0.62775511,3205.7,3204.8,0.7717]
[1737624890938,3.74720511,3205.7,3205.1,3.11999]
[1737624891163,0.44969051,3205.6,3205.1,3.11999]
[1737624891345,0.44969051,3205.6,3205.2,3.11985]
[1737624891560,0.62775511,3205.7,3205.2,3.11985]
[1737624892241,3.12015,3205.0,3204.3,3.12077]
[1737624892574,0.55,3204.9,3204.3,3.12077]
[1737624892888,0.55,3204.9,3204.5,3.12061]
[1737624893177,3.67004,3205.1,3204.5,3.12061]
[1737624893405,0.55,3204.9,3204.4,3.12068]
[1737624893540,0.55,3204.9,3204.5,3.1206]
[1737624894376,0.678997,3205.0,3204.9,3.12022]
[1737624894543,0.7497,3205.3,3204.6,3.12046]
[1737624894746,0.55,3205.2,3204.6,3.12046]
[1737624895267,3.0,3205.6,3204.9,3.12019]
[1737624895500,3.0,3205.6,3205.0,3.12011]
[1737624895647,0.55,3205.5,3205.0,3.12011]
[1737624895846,3.0,3205.6,3204.1,3.58807869]
[1737624895847,0.355,3205.4,3204.1,3.58807869]
[1737624896047,3.1201,3205.1,3204.3,3.12072]
[1737624896242,0.55,3205.0,3204.3,3.12072]
[1737624896445,3.11984,3205.3,3204.4,3.12069]
[1737624896640,3.11984,3205.3,3204.2,0.13950258]
[1737624896978,0.63243473,3205.6,3204.4,3.12063]
[1737624896979,0.55,3205.1,3204.4,3.12063]
[1737624897177,4.037059,3205.1,3204.4,3.12063]
[1737624897377,0.916999,3205.1,3204.6,3.1205]
[1737624897876,4.037029,3205.1,3204.4,3.12063]
[1737624898079,4.037029,3205.1,3204.2,3.26038258]
[1737624898268,0.7497,3204.9,3204.3,3.12076]
[1737624898481,1.2283729,3204.9,3204.3,3.12076]
[1737624898646,4.3486029,3204.9,3204.3,3.12076]
[1737624899158,1.2283729,3204.9,3204.4,3.1207]
[1737624899375,4.3486129,3204.9,3204.3,3.12076]
[1737624899583,4.3486129,3204.9,3204.5,0.14018828]
[1737624899803,0.55354319,3204.8,3204.5,0.14018828]
[1737624900003,3.67051,3204.6,3204.5,0.14018828]
[1737624900695,0.55,3204.7,3203.5,3.93595]
[1737624900894,0.55,3204.7,3203.5,3.12155]
[1737624900895,0.55,3204.1,3203.5,3.12155]
[1737624901096,0.55,3204.1,3203.5,3.12157]
[1737624901271,0.55,3204.1,3203.3,3.12176]
[1737624901272,3.67109,3204.1,3203.3,3.12176]
[1737624901471,0.442079,3204.0,3203.5,3.1215]
[1737624901695,0.63681902,3205.0,3204.0,0.8144]
[1737624902004,3.11954,3205.6,3204.9,3.1202]
[1737624902192,3.86968,3205.2,3204.0,3.93549]
[1737624902378,0.55,3204.4,3203.9,3.12113]
[1737624902578,0.55,3204.4,3203.7,3.12131]
[1737624902579,3.0,3204.4,3203.7,3.12131]
[1737624902788,3.612063,3204.4,3203.9,3.12118]
[1737624903017,0.55,3204.3,3203.7,3.12131]
[1737624903207,0.55,3204.3,3203.3,0.8144]
[1737624903208,0.7497,3204.2,3203.3,0.8144]
[1737624903384,3.12118,3204.0,3203.3,3.12171]
[1737624903904,3.67121,3203.9,3203.3,3.12171]
[1737624904091,3.7497,3204.2,3203.5,3.12158]
[1737624904291,5.52842435,3204.2,3203.5,3.12158]
[1737624904899,0.55,3204.1,3203.6,3.12141]
[1737624907721,3.74799355,3204.3,3203.6,3.92581]
[1737624907722,0.62717355,3204.3,3203.6,3.92581]
[1737624907919,0.7497,3204.5,3204.2,3.1209]
[1737624908096,0.7497,3205.0,3204.2,3.1209]
[1737624908305,0.41941349,3204.9,3203.9,3.58807869]
[1737624908499,0.7497,3205.4,3204.8,3.12031]
[1737624908690,0.7497,3205.4,3205.2,3.11989]
[1737624908887,0.7497,3205.8,3205.4,3.11971]
[1737624909198,0.7497,3205.8,3205.0,3.1201]